[Event "Early-Titled-Tuesday-Blitz-October-17-2023"]
[Site "Chess.com"]
[Date "2023.10.17"]
[Round "5"]
[White "CristianS27"]
[Black "CSB7"]
[Result "0-1"]
[WhiteElo "2509"]
[BlackElo "2743"]
[TimeControl "180+1"]
[EndTime "8:59:49 PDT"]
[Termination "CSB7 won on time"]

1. e4 {[%clk 0:03:00.9]} 1... d5 {[%clk 0:02:59.8]} 2. exd5 {[%clk 0:03:01.8]}
2... Qxd5 {[%clk 0:03:00.4]} 3. Nc3 {[%clk 0:03:01.2]} 3... Qa5 {[%clk
0:03:00.2]} 4. d4 {[%clk 0:03:02.1]} 4... Nf6 {[%clk 0:02:58.8]} 5. Nf3 {[%clk
0:03:02]} 5... Bf5 {[%clk 0:02:53.6]} 6. Bc4 {[%clk 0:03:01.2]} 6... e6 {[%clk
0:02:51]} 7. Bd2 {[%clk 0:02:59.3]} 7... Bb4 {[%clk 0:02:50.6]} 8. a3 {[%clk
0:02:54.7]} 8... Bxc3 {[%clk 0:02:47.5]} 9. Bxc3 {[%clk 0:02:55.6]} 9... Qb6
{[%clk 0:02:47.8]} 10. d5 {[%clk 0:02:47.2]} 10... exd5 {[%clk 0:02:07]} 11.
Bxf6 {[%clk 0:02:28.5]} 11... Qxf6 {[%clk 0:01:55.7]} 12. Bxd5 {[%clk
0:02:24.9]} 12... c6 {[%clk 0:01:42.3]} 13. Qe2+ {[%clk 0:01:57.6]} 13... Kd8
{[%clk 0:01:36.4]} 14. O-O-O {[%clk 0:01:57.2]} 14... cxd5 {[%clk 0:01:19.3]}
15. Rxd5+ {[%clk 0:01:58.1]} 15... Bd7 {[%clk 0:01:09.5]} 16. Rhd1 {[%clk
0:01:56.7]} 16... Re8 {[%clk 0:01:07.4]} 17. Qb5 {[%clk 0:01:45.3]} 17... Qc6
{[%clk 0:00:56.1]} 18. Qd3 {[%clk 0:01:23.7]} 18... f6 {[%clk 0:00:43.7]} 19.
Qxh7 {[%clk 0:01:20.2]} 19... Re7 {[%clk 0:00:43.7]} 20. Qg8+ {[%clk 0:01:15.5]}
20... Kc7 {[%clk 0:00:43.4]} 21. Nd4 {[%clk 0:01:15.5]} 21... Qb6 {[%clk
0:00:31.8]} 22. Nb5+ {[%clk 0:01:04.9]} 22... Kc6 {[%clk 0:00:21.8]} 23. Nd4+
{[%clk 0:00:57.5]} 23... Kc7 {[%clk 0:00:21.8]} 24. Nb5+ {[%clk 0:00:58.2]}
24... Kc6 {[%clk 0:00:22.2]} 25. Rd6+ {[%clk 0:00:48.5]} 25... Kxb5 {[%clk
0:00:22.2]} 26. Rxb6+ {[%clk 0:00:31.1]} 26... axb6 {[%clk 0:00:18.8]} 27. b3
{[%clk 0:00:24.4]} 27... Ka6 {[%clk 0:00:17.1]} 28. h4 {[%clk 0:00:20.8]} 28...
Ka7 {[%clk 0:00:16.4]} 29. Qc4 {[%clk 0:00:14]} 29... Na6 {[%clk 0:00:11.9]} 30.
h5 {[%clk 0:00:12.4]} 30... Rc8 {[%clk 0:00:11.6]} 31. Qd4 {[%clk 0:00:11.4]}
31... Bf5 {[%clk 0:00:10.4]} 32. Rd2 {[%clk 0:00:10.1]} 32... Nc5 {[%clk
0:00:09.1]} 33. Kb2 {[%clk 0:00:10]} 33... Rec7 {[%clk 0:00:08.3]} 34. c4 {[%clk
0:00:07.8]} 34... Bh7 {[%clk 0:00:06.2]} 35. f3 {[%clk 0:00:08]} 35... Kb8
{[%clk 0:00:06.5]} 36. g4 {[%clk 0:00:08]} 36... Ka7 {[%clk 0:00:06.9]} 37. Qf4
{[%clk 0:00:08.3]} 37... b5 {[%clk 0:00:05.4]} 38. h6 {[%clk 0:00:07.6]} 38...
bxc4 {[%clk 0:00:04.9]} 39. bxc4 {[%clk 0:00:05.4]} 39... gxh6 {[%clk
0:00:04.2]} 40. Qxf6 {[%clk 0:00:05.7]} 40... Na4+ {[%clk 0:00:04.2]} 41. Ka2
{[%clk 0:00:04.9]} 41... Bg8 {[%clk 0:00:04]} 42. Kb3 {[%clk 0:00:04.3]} 42...
Nc5+ {[%clk 0:00:03.7]} 43. Ka2 {[%clk 0:00:03.9]} 43... Bxc4+ {[%clk
0:00:03.8]} 44. Kb2 {[%clk 0:00:04.6]} 44... Na4+ {[%clk 0:00:03.9]} 45. Ka1
{[%clk 0:00:04]} 45... Bb5 {[%clk 0:00:04.2]} 46. Qd4+ {[%clk 0:00:04.4]} 46...
Ka6 {[%clk 0:00:04.1]} 47. Ka2 {[%clk 0:00:03.9]} 47... Rc2+ {[%clk 0:00:04]}
48. Rxc2 {[%clk 0:00:03.7]} 48... Rxc2+ {[%clk 0:00:04.9]} 49. Kb1 {[%clk
0:00:03.7]} 49... Rb2+ {[%clk 0:00:04.1]} 50. Kc1 {[%clk 0:00:02.9]} 50... Rb3
{[%clk 0:00:04.1]} 51. Qd6+ {[%clk 0:00:02.5]} 51... b6 {[%clk 0:00:03.3]} 52.
Qxh6 {[%clk 0:00:03.4]} 52... Rxa3 {[%clk 0:00:03.3]} 53. Qf8 {[%clk 0:00:03.7]}
53... Rc3+ {[%clk 0:00:03.5]} 54. Kd2 {[%clk 0:00:04.3]} 54... Ka5 {[%clk
0:00:03.7]} 55. g5 {[%clk 0:00:03.6]} 55... Rc5 {[%clk 0:00:02.3]} 56. g6 {[%clk
0:00:02.7]} 56... Rd5+ {[%clk 0:00:02.6]} 57. Ke3 {[%clk 0:00:02.4]} 57... Bc4
{[%clk 0:00:02.9]} 58. Qa8+ {[%clk 0:00:02]} 58... Kb4 {[%clk 0:00:02.7]} 59. g7
{[%clk 0:00:02.9]} 59... Rd3+ {[%clk 0:00:03.1]} 60. Kf2 {[%clk 0:00:02.8]}
60... Rd2+ {[%clk 0:00:03]} 61. Kg3 {[%clk 0:00:02.8]} 61... b5 {[%clk 0:00:03]}
62. g8=Q {[%clk 0:00:02.8]} 62... Bxg8 {[%clk 0:00:03.5]} 63. Qxg8 {[%clk
0:00:03.6]} 63... Kc3 {[%clk 0:00:03.1]} 64. Qg7+ {[%clk 0:00:03.5]} 64... Kb3
{[%clk 0:00:03.1]} 65. Qf7+ {[%clk 0:00:03.7]} 65... Kc3 {[%clk 0:00:03.3]} 66.
Qc7+ {[%clk 0:00:03.4]} 66... Kb3 {[%clk 0:00:02.6]} 67. Qf7+ {[%clk 0:00:03]}
67... Kc3 {[%clk 0:00:02.7]} 68. f4 {[%clk 0:00:03.2]} 68... b4 {[%clk 0:00:03]}
69. Qc7+ {[%clk 0:00:02.6]} 69... Kb2 {[%clk 0:00:03.2]} 70. Qa5 {[%clk
0:00:02.2]} 70... Ka3 {[%clk 0:00:02.9]} 71. f5 {[%clk 0:00:02]} 71... Rd3+
{[%clk 0:00:03.4]} 72. Kf2 {[%clk 0:00:02.6]} 72... b3 {[%clk 0:00:03.7]} 73. f6
{[%clk 0:00:02.3]} 73... b2 {[%clk 0:00:04]} 74. Qb5 {[%clk 0:00:02.9]} 74...
Rb3 {[%clk 0:00:03.6]} 75. Qxb3+ {[%clk 0:00:02.1]} 75... Kxb3 {[%clk
0:00:04.5]} 76. f7 {[%clk 0:00:03]} 76... b1=Q {[%clk 0:00:04.9]} 77. f8=Q
{[%clk 0:00:03.7]} 77... Qc2+ {[%clk 0:00:05.3]} 78. Ke3 {[%clk 0:00:03.6]}
78... Qc3+ {[%clk 0:00:05.6]} 79. Kf4 {[%clk 0:00:03.1]} 79... Nc5 {[%clk
0:00:06.1]} 80. Qb8+ {[%clk 0:00:02.7]} 80... Kc2 {[%clk 0:00:06.3]} 81. Qh8
{[%clk 0:00:02]} 81... Qxh8 {[%clk 0:00:05.6]} 0-1

[Event "Early-Titled-Tuesday-Blitz-October-17-2023"]
[Site "Chess.com"]
[Date "2023.10.17"]
[Round "5"]
[White "Irina_Mikhaylova"]
[Black "MidnightFox"]
[Result "1/2-1/2"]
[WhiteElo "2309"]
[BlackElo "2476"]
[TimeControl "180+1"]
[EndTime "8:59:58 PDT"]
[Termination "Game drawn by repetition"]

1. Nf3 {[%clk 0:03:00.9]} 1... g6 {[%clk 0:02:59.2]} 2. d4 {[%clk 0:03:00.5]}
2... Nf6 {[%clk 0:02:56.9]} 3. c4 {[%clk 0:03:00.8]} 3... Bg7 {[%clk 0:02:53.8]}
4. Nc3 {[%clk 0:03:01.2]} 4... d5 {[%clk 0:02:54.2]} 5. cxd5 {[%clk 0:03:01.6]}
5... Nxd5 {[%clk 0:02:55.1]} 6. Na4 {[%clk 0:03:02.2]} 6... O-O {[%clk
0:02:54.4]} 7. e4 {[%clk 0:03:02.6]} 7... Nb6 {[%clk 0:02:54.4]} 8. Be3 {[%clk
0:03:03.2]} 8... Nxa4 {[%clk 0:02:53.3]} 9. Qxa4 {[%clk 0:03:03.1]} 9... c5
{[%clk 0:02:48.2]} 10. Rd1 {[%clk 0:03:00.5]} 10... cxd4 {[%clk 0:02:35.5]} 11.
Bxd4 {[%clk 0:03:00.8]} 11... Bd7 {[%clk 0:02:28.6]} 12. Qb3 {[%clk 0:02:54.9]}
12... Qa5+ {[%clk 0:02:18.3]} 13. Bc3 {[%clk 0:02:48]} 13... Bxc3+ {[%clk
0:02:09.3]} 14. Qxc3 {[%clk 0:02:48.2]} 14... Qxc3+ {[%clk 0:02:07.5]} 15. bxc3
{[%clk 0:02:48.3]} 15... Be6 {[%clk 0:01:55.5]} 16. Rd2 {[%clk 0:02:44.6]} 16...
Nc6 {[%clk 0:01:53.4]} 17. Nd4 {[%clk 0:02:44.2]} 17... Nxd4 {[%clk 0:01:41.9]}
18. cxd4 {[%clk 0:02:42.8]} 18... Rac8 {[%clk 0:01:40.8]} 19. d5 {[%clk
0:02:42.8]} 19... Bd7 {[%clk 0:01:37]} 20. Bd3 {[%clk 0:02:32.8]} 20... Rc1+
{[%clk 0:01:32.7]} 21. Rd1 {[%clk 0:02:32.9]} 21... Rc3 {[%clk 0:01:29.2]} 22.
O-O {[%clk 0:02:22.2]} 22... Rfc8 {[%clk 0:01:28.4]} 23. Rd2 {[%clk 0:02:22.6]}
23... b5 {[%clk 0:01:21]} 24. f3 {[%clk 0:01:48.6]} 24... a5 {[%clk 0:01:20.6]}
25. Kf2 {[%clk 0:01:48.6]} 25... b4 {[%clk 0:01:20]} 26. Rb1 {[%clk 0:01:48.7]}
26... Rb8 {[%clk 0:01:13.4]} 27. Ke2 {[%clk 0:01:42.3]} 27... a4 {[%clk
0:01:12.5]} 28. Rc2 {[%clk 0:01:37.8]} 28... Rxc2+ {[%clk 0:01:01.3]} 29. Bxc2
{[%clk 0:01:37.7]} 29... g5 {[%clk 0:01:01.7]} 30. Kd3 {[%clk 0:01:13.9]} 30...
f6 {[%clk 0:01:00.7]} 31. Kd4 {[%clk 0:01:12.8]} 31... h6 {[%clk 0:00:57.3]} 32.
Bd3 {[%clk 0:01:09.2]} 32... Kf7 {[%clk 0:00:52.7]} 33. Kc5 {[%clk 0:01:00.8]}
33... b3 {[%clk 0:00:47.5]} 34. axb3 {[%clk 0:01:00.9]} 34... axb3 {[%clk
0:00:48.4]} 35. Rb2 {[%clk 0:01:00.5]} 35... Ba4 {[%clk 0:00:43.2]} 36. Bc4
{[%clk 0:00:55]} 36... Ke8 {[%clk 0:00:40.3]} 37. Kd4 {[%clk 0:00:54.1]} 37...
Kd7 {[%clk 0:00:38.5]} 38. Kc3 {[%clk 0:00:54.5]} 38... Rc8 {[%clk 0:00:23.6]}
39. Kb4 {[%clk 0:00:54.3]} 39... Kd6 {[%clk 0:00:21.4]} 40. Bxb3 {[%clk
0:00:48.7]} 40... Bxb3 {[%clk 0:00:19.7]} 41. Kxb3 {[%clk 0:00:47.2]} 41... Ke5
{[%clk 0:00:19.6]} 42. Rd2 {[%clk 0:00:31.5]} 42... Kf4 {[%clk 0:00:18.9]} 43.
d6 {[%clk 0:00:31.2]} 43... exd6 {[%clk 0:00:18.7]} 44. Rxd6 {[%clk 0:00:31.4]}
44... Rf8 {[%clk 0:00:17.6]} 45. Rd3 {[%clk 0:00:29.3]} 45... f5 {[%clk
0:00:17.4]} 46. exf5 {[%clk 0:00:29.1]} 46... Rxf5 {[%clk 0:00:18.3]} 47. Kc3
{[%clk 0:00:29.6]} 47... Re5 {[%clk 0:00:18.2]} 48. Kd2 {[%clk 0:00:29.4]} 48...
Ra5 {[%clk 0:00:18.6]} 49. Rd4+ {[%clk 0:00:28.8]} 49... Kf5 {[%clk 0:00:19.1]}
50. Ke3 {[%clk 0:00:28.9]} 50... Ra3+ {[%clk 0:00:18.9]} 51. Rd3 {[%clk
0:00:29.2]} 51... Ra2 {[%clk 0:00:19.3]} 52. Rd2 {[%clk 0:00:29.7]} 52... Ra3+
{[%clk 0:00:19.7]} 53. Kf2 {[%clk 0:00:30.2]} 53... h5 {[%clk 0:00:19.7]} 54.
Rd5+ {[%clk 0:00:27.8]} 54... Kg6 {[%clk 0:00:19.6]} 55. Rd2 {[%clk 0:00:25]}
55... Rb3 {[%clk 0:00:19.7]} 56. g3 {[%clk 0:00:24.8]} 56... Ra3 {[%clk
0:00:20.1]} 57. Kg2 {[%clk 0:00:25.2]} 57... Rb3 {[%clk 0:00:20.3]} 58. Rf2
{[%clk 0:00:25.5]} 58... Ra3 {[%clk 0:00:20.4]} 59. Re2 {[%clk 0:00:25.9]} 59...
Rb3 {[%clk 0:00:20.4]} 60. Kf2 {[%clk 0:00:26.4]} 60... Ra3 {[%clk 0:00:20.8]}
61. Re6+ {[%clk 0:00:26.4]} 61... Kg7 {[%clk 0:00:19.2]} 62. f4 {[%clk
0:00:22.5]} 62... gxf4 {[%clk 0:00:17.5]} 63. gxf4 {[%clk 0:00:23]} 63... Rb3
{[%clk 0:00:16.4]} 64. Kg2 {[%clk 0:00:21.7]} 64... Rc3 {[%clk 0:00:16.3]} 65.
Re5 {[%clk 0:00:21.5]} 65... Kg6 {[%clk 0:00:16]} 66. Rg5+ {[%clk 0:00:21.4]}
66... Kh6 {[%clk 0:00:16.6]} 67. Re5 {[%clk 0:00:21.4]} 67... Rb3 {[%clk
0:00:16.3]} 68. Kf2 {[%clk 0:00:21]} 68... Kg6 {[%clk 0:00:16.5]} 69. Rc5 {[%clk
0:00:20.7]} 69... Ra3 {[%clk 0:00:16.6]} 70. Rb5 {[%clk 0:00:20.2]} 70... Rc3
{[%clk 0:00:16.1]} 71. Re5 {[%clk 0:00:19.9]} 71... Ra3 {[%clk 0:00:16.2]} 72.
Kg2 {[%clk 0:00:19.8]} 72... Rb3 {[%clk 0:00:16.4]} 73. Rg5+ {[%clk 0:00:19.8]}
73... Kh6 {[%clk 0:00:16.3]} 74. Rg3 {[%clk 0:00:20.2]} 74... Rb2+ {[%clk
0:00:13.3]} 75. Kh3 {[%clk 0:00:20.5]} 75... Rb4 {[%clk 0:00:09]} 76. Rf3 {[%clk
0:00:20.3]} 76... Kg6 {[%clk 0:00:09.6]} 77. Kh4 {[%clk 0:00:18.9]} 77... Rb2
{[%clk 0:00:06.2]} 78. h3 {[%clk 0:00:15.5]} 78... Rb4 {[%clk 0:00:06.2]} 79.
Kg3 {[%clk 0:00:14.7]} 79... Kf5 {[%clk 0:00:06.4]} 80. Kh4 {[%clk 0:00:15.3]}
80... Rc4 {[%clk 0:00:02.5]} 81. Rf1 {[%clk 0:00:15.4]} 81... Rc8 {[%clk
0:00:03.3]} 82. Rg1 {[%clk 0:00:15.5]} 82... Kxf4 {[%clk 0:00:03.2]} 83. Rf1+
{[%clk 0:00:15.9]} 83... Ke5 {[%clk 0:00:03.5]} 84. Kxh5 {[%clk 0:00:16.4]}
84... Rg8 {[%clk 0:00:03.3]} 85. Rf7 {[%clk 0:00:15.1]} 85... Rg2 {[%clk
0:00:03.8]} 86. h4 {[%clk 0:00:13.3]} 86... Ke6 {[%clk 0:00:04.3]} 87. Rf3
{[%clk 0:00:13.2]} 87... Ke7 {[%clk 0:00:04.5]} 88. Rf4 {[%clk 0:00:13.7]} 88...
Ke6 {[%clk 0:00:04.7]} 89. Rg4 {[%clk 0:00:14.1]} 89... Ra2 {[%clk 0:00:04.3]}
90. Rg5 {[%clk 0:00:14.2]} 90... Ra8 {[%clk 0:00:04.7]} 91. Kg4 {[%clk
0:00:14.1]} 91... Kf7 {[%clk 0:00:05]} 92. Rf5+ {[%clk 0:00:13.9]} 92... Kg7
{[%clk 0:00:04.9]} 93. Rg5+ {[%clk 0:00:14.4]} 93... Kh7 {[%clk 0:00:04.6]} 94.
Rh5+ {[%clk 0:00:14.8]} 94... Kg7 {[%clk 0:00:05.1]} 95. Rg5+ {[%clk 0:00:15.1]}
95... Kh7 {[%clk 0:00:05.8]} 96. Rh5+ {[%clk 0:00:15.4]} 96... Kg7 {[%clk
0:00:06.5]} 97. Rg5+ {[%clk 0:00:16]} 1/2-1/2

[Event "Early-Titled-Tuesday-Blitz-October-17-2023"]
[Site "Chess.com"]
[Date "2023.10.17"]
[Round "5"]
[White "Sadykov_Ramil"]
[Black "MikaelyanArman"]
[Result "0-1"]
[WhiteElo "2606"]
[BlackElo "2858"]
[TimeControl "180+1"]
[EndTime "9:01:05 PDT"]
[Termination "MikaelyanArman won by resignation"]

1. e4 {[%clk 0:03:00.9]} 1... e5 {[%clk 0:02:59]} 2. Nf3 {[%clk 0:03:00.9]} 2...
Nc6 {[%clk 0:02:59.4]} 3. Nc3 {[%clk 0:03:00.2]} 3... Nf6 {[%clk 0:02:58.3]} 4.
d4 {[%clk 0:03:00.5]} 4... exd4 {[%clk 0:02:57.3]} 5. Nxd4 {[%clk 0:03:01.4]}
5... Bb4 {[%clk 0:02:57.6]} 6. Nxc6 {[%clk 0:03:01.6]} 6... bxc6 {[%clk
0:02:58.5]} 7. Bd3 {[%clk 0:03:01.4]} 7... O-O {[%clk 0:02:59.1]} 8. O-O {[%clk
0:03:01.1]} 8... Re8 {[%clk 0:02:59.7]} 9. Qf3 {[%clk 0:02:52.6]} 9... h6 {[%clk
0:02:52.8]} 10. Bf4 {[%clk 0:02:43.3]} 10... d6 {[%clk 0:02:53.2]} 11. h3 {[%clk
0:02:41.2]} 11... Nd7 {[%clk 0:02:51.8]} 12. Qg3 {[%clk 0:02:29.6]} 12... Qf6
{[%clk 0:02:49.4]} 13. Nd1 {[%clk 0:02:05.1]} 13... Ne5 {[%clk 0:02:45.9]} 14.
Bxe5 {[%clk 0:01:50.2]} 14... Rxe5 {[%clk 0:02:32.4]} 15. f4 {[%clk 0:01:45.9]}
15... Re8 {[%clk 0:02:31.5]} 16. c3 {[%clk 0:01:39]} 16... Bc5+ {[%clk
0:02:31.3]} 17. Kh1 {[%clk 0:01:39.3]} 17... Rb8 {[%clk 0:02:27.8]} 18. Rb1
{[%clk 0:01:35]} 18... Be6 {[%clk 0:02:10.1]} 19. b3 {[%clk 0:01:27.8]} 19... a5
{[%clk 0:02:08.4]} 20. Rc1 {[%clk 0:01:20.5]} 20... Bb6 {[%clk 0:02:03.9]} 21.
Ne3 {[%clk 0:01:15.2]} 21... a4 {[%clk 0:01:55.2]} 22. bxa4 {[%clk 0:01:05.9]}
22... Ra8 {[%clk 0:01:38.5]} 23. Ng4 {[%clk 0:00:30.4]} 23... Bxg4 {[%clk
0:01:35.5]} 24. Qxg4 {[%clk 0:00:28.3]} 24... Rxa4 {[%clk 0:01:31.9]} 25. Rc2
{[%clk 0:00:28.2]} 25... Ra3 {[%clk 0:01:14]} 26. Qd7 {[%clk 0:00:15.2]} 26...
Qe6 {[%clk 0:00:59.6]} 27. Qxc6 {[%clk 0:00:12.6]} 27... Bc5 {[%clk 0:00:48.6]}
28. e5 {[%clk 0:00:08.2]} 28... Rf8 {[%clk 0:00:32.7]} 29. Qe4 {[%clk 0:00:07]}
29... g6 {[%clk 0:00:26.4]} 30. Bc4 {[%clk 0:00:06.8]} 30... Qf5 {[%clk
0:00:26.4]} 31. Qxf5 {[%clk 0:00:03.6]} 31... gxf5 {[%clk 0:00:27.3]} 32. Bd3
{[%clk 0:00:03.3]} 32... Rfa8 {[%clk 0:00:22.6]} 33. exd6 {[%clk 0:00:03.3]}
33... Bxd6 {[%clk 0:00:20.3]} 34. Bxf5 {[%clk 0:00:03.6]} 34... Rxa2 {[%clk
0:00:20.9]} 35. Rxa2 {[%clk 0:00:04.3]} 35... Rxa2 {[%clk 0:00:21.4]} 36. Kh2
{[%clk 0:00:03]} 36... Ra4 {[%clk 0:00:20.8]} 37. Kg3 {[%clk 0:00:02.4]} 37...
Kg7 {[%clk 0:00:20.7]} 38. Rf3 {[%clk 0:00:03]} 38... Kf6 {[%clk 0:00:20.7]} 39.
Bd7 {[%clk 0:00:02.3]} 39... Ra3 {[%clk 0:00:19.2]} 40. Bc6 {[%clk 0:00:02.4]}
40... Bc5 {[%clk 0:00:17.9]} 41. Bd5 {[%clk 0:00:02.5]} 41... Ra1 {[%clk
0:00:17.6]} 42. c4 {[%clk 0:00:03]} 42... Rd1 {[%clk 0:00:15.8]} 43. Rb3 {[%clk
0:00:02.7]} 43... Re1 {[%clk 0:00:13.5]} 44. Kf3 {[%clk 0:00:02.7]} 44... h5
{[%clk 0:00:13.3]} 45. g3 {[%clk 0:00:03.1]} 45... Rf1+ {[%clk 0:00:13]} 46. Ke2
{[%clk 0:00:03.1]} 46... Rf2+ {[%clk 0:00:13]} 47. Ke1 {[%clk 0:00:03]} 47...
Rh2 {[%clk 0:00:13.4]} 48. Rb5 {[%clk 0:00:02.7]} 48... Bf2+ {[%clk 0:00:13.1]}
49. Kf1 {[%clk 0:00:02.8]} 49... Bxg3 {[%clk 0:00:13.9]} 50. Rb7 {[%clk
0:00:02.3]} 50... Bxf4 {[%clk 0:00:11.9]} 51. Rb8 {[%clk 0:00:02.8]} 51... Rc2
{[%clk 0:00:08.9]} 52. Rf8 {[%clk 0:00:03]} 52... Ke5 {[%clk 0:00:09]} 53. Rxf7
{[%clk 0:00:03.2]} 53... c5 {[%clk 0:00:09.6]} 54. Ke1 {[%clk 0:00:02.7]} 54...
Be3 {[%clk 0:00:09.1]} 55. Kf1 {[%clk 0:00:03.1]} 55... Kd4 {[%clk 0:00:08.7]}
56. Rh7 {[%clk 0:00:03.1]} 56... Rf2+ {[%clk 0:00:07.3]} 57. Ke1 {[%clk
0:00:03]} 57... Kd3 {[%clk 0:00:07.2]} 58. Rd7 {[%clk 0:00:02.9]} 58... Kc3
{[%clk 0:00:06.7]} 59. Be6 {[%clk 0:00:02.9]} 59... Rh2 {[%clk 0:00:06.3]} 60.
Rd5 {[%clk 0:00:02.9]} 60... Bd4 {[%clk 0:00:06.6]} 61. Rxh5 {[%clk 0:00:02.4]}
61... Kd3 {[%clk 0:00:07.3]} 62. Kf1 {[%clk 0:00:02.1]} 62... Rf2+ {[%clk
0:00:06.9]} 63. Ke1 {[%clk 0:00:01.6]} 63... Re2+ {[%clk 0:00:07]} 64. Kf1
{[%clk 0:00:01.9]} 64... Rxe6 {[%clk 0:00:07.7]} 65. Rf5 {[%clk 0:00:01.6]}
65... Ra6 {[%clk 0:00:07.1]} 66. Rf3+ {[%clk 0:00:01.4]} 66... Kxc4 {[%clk
0:00:06.8]} 67. h4 {[%clk 0:00:02.3]} 67... Kd5 {[%clk 0:00:06.7]} 68. h5 {[%clk
0:00:02.7]} 68... Rh6 {[%clk 0:00:06.7]} 69. Rh3 {[%clk 0:00:02.5]} 69... Ke4
{[%clk 0:00:07.4]} 70. Ke2 {[%clk 0:00:03.2]} 70... Kf4 {[%clk 0:00:07.4]} 71.
Rh4+ {[%clk 0:00:03.7]} 71... Kg5 {[%clk 0:00:07.6]} 72. Rh1 {[%clk 0:00:02]}
72... Rxh5 {[%clk 0:00:08.2]} 73. Rf1 {[%clk 0:00:01.9]} 73... Rh3 {[%clk
0:00:07.6]} 74. Kd2 {[%clk 0:00:01.8]} 74... Rh4 {[%clk 0:00:06.8]} 75. Kc2
{[%clk 0:00:02.3]} 75... Rf4 {[%clk 0:00:07.1]} 76. Re1 {[%clk 0:00:02.4]} 76...
Kf5 {[%clk 0:00:07.5]} 77. Kd3 {[%clk 0:00:03]} 77... Rf3+ {[%clk 0:00:08]} 78.
Kc4 {[%clk 0:00:02.9]} 78... Rc3+ {[%clk 0:00:08.1]} 79. Kd5 {[%clk 0:00:03.4]}
79... Re3 {[%clk 0:00:08.5]} 80. Rf1+ {[%clk 0:00:03.9]} 80... Kg6 {[%clk
0:00:09]} 81. Kc4 {[%clk 0:00:03.8]} 81... Re5 {[%clk 0:00:08.9]} 82. Kd3 {[%clk
0:00:03.9]} 82... Rf5 {[%clk 0:00:09.1]} 83. Re1 {[%clk 0:00:03.8]} 83... Kf6
{[%clk 0:00:09.6]} 84. Kc4 {[%clk 0:00:04.4]} 84... Re5 {[%clk 0:00:09.8]} 85.
Rf1+ {[%clk 0:00:04.8]} 85... Ke6 {[%clk 0:00:10.3]} 86. Rh1 {[%clk 0:00:05.7]}
86... Re1 {[%clk 0:00:09]} 87. Rh6+ {[%clk 0:00:05.9]} 87... Kd7 {[%clk
0:00:09.3]} 88. Kd5 {[%clk 0:00:05.7]} 88... Re5+ {[%clk 0:00:08.5]} 89. Kc4
{[%clk 0:00:05.5]} 89... Re6 {[%clk 0:00:09.1]} 90. Rh7+ {[%clk 0:00:05.1]}
90... Kd6 {[%clk 0:00:09.5]} 91. Rh5 {[%clk 0:00:05.3]} 91... Bf2 {[%clk
0:00:08.8]} 92. Rd5+ {[%clk 0:00:05]} 92... Kc6 {[%clk 0:00:09.3]} 93. Rf5
{[%clk 0:00:05.9]} 93... Bg1 {[%clk 0:00:07.6]} 94. Rf4 {[%clk 0:00:05.5]} 94...
Rd6 {[%clk 0:00:06.3]} 95. Kc3 {[%clk 0:00:05.2]} 95... Rd4 {[%clk 0:00:05.8]}
96. Rf6+ {[%clk 0:00:05.8]} 96... Kb5 {[%clk 0:00:05.6]} 97. Rf8 {[%clk
0:00:06.7]} 97... Be3 {[%clk 0:00:04.9]} 98. Rb8+ {[%clk 0:00:06.6]} 98... Kc6
{[%clk 0:00:05.3]} 99. Re8 {[%clk 0:00:07]} 99... Bd2+ {[%clk 0:00:05]} 100. Kb3
{[%clk 0:00:07]} 100... c4+ {[%clk 0:00:03.2]} 101. Kc2 {[%clk 0:00:06.3]}
101... Ba5 {[%clk 0:00:03.6]} 102. Re5 {[%clk 0:00:06.2]} 102... Bb6 {[%clk
0:00:03.7]} 103. Rg5 {[%clk 0:00:05.7]} 103... Bc5 {[%clk 0:00:03.4]} 104. Kc3
{[%clk 0:00:06.1]} 104... Kb5 {[%clk 0:00:03.3]} 105. Rg3 {[%clk 0:00:03.9]}
105... Re4 {[%clk 0:00:03.7]} 106. Rg5 {[%clk 0:00:03.3]} 106... Re3+ {[%clk
0:00:03.9]} 107. Kc2 {[%clk 0:00:03.9]} 107... Kb4 {[%clk 0:00:04.6]} 108. Rg8
{[%clk 0:00:04.2]} 108... Re2+ {[%clk 0:00:04.8]} 109. Kd1 {[%clk 0:00:04.3]}
109... Rh2 {[%clk 0:00:04.6]} 110. Rg3 {[%clk 0:00:03.5]} 110... c3 {[%clk
0:00:05]} 111. Kc1 {[%clk 0:00:03.2]} 111... Kb3 {[%clk 0:00:05.2]} 112. Kd1
{[%clk 0:00:03]} 112... Rh1+ {[%clk 0:00:05.3]} 113. Ke2 {[%clk 0:00:03.2]}
113... Kb2 {[%clk 0:00:06]} 114. Rg5 {[%clk 0:00:03.3]} 114... c2 {[%clk
0:00:06]} 115. Rxc5 {[%clk 0:00:03.4]} 115... c1=Q {[%clk 0:00:06.3]} 116. Rb5+
{[%clk 0:00:03.7]} 116... Kc2 {[%clk 0:00:06.6]} 117. Rc5+ {[%clk 0:00:04.1]}
117... Kb1 {[%clk 0:00:07.2]} 118. Rxc1+ {[%clk 0:00:04.1]} 118... Kxc1 {[%clk
0:00:07.6]} 119. Kf3 {[%clk 0:00:05]} 119... Rd1 {[%clk 0:00:07.7]} 120. Ke2
{[%clk 0:00:05.2]} 120... Rd8 {[%clk 0:00:08.6]} 121. Ke3 {[%clk 0:00:05.7]}
121... Kc2 {[%clk 0:00:09.3]} 122. Ke4 {[%clk 0:00:06.6]} 122... Kc3 {[%clk
0:00:09.9]} 123. Ke5 {[%clk 0:00:07.1]} 123... Kc4 {[%clk 0:00:10.5]} 124. Ke6
{[%clk 0:00:07.6]} 124... Rd1 {[%clk 0:00:10.8]} 125. Ke5 {[%clk 0:00:08]}
125... Rd2 {[%clk 0:00:11.3]} 126. Ke4 {[%clk 0:00:08.4]} 126... Re2+ {[%clk
0:00:11.6]} 127. Kf3 {[%clk 0:00:08.9]} 127... Re8 {[%clk 0:00:12.5]} 128. Kf4
{[%clk 0:00:08.9]} 128... Kd5 {[%clk 0:00:13.1]} 129. Kf5 {[%clk 0:00:09.4]}
129... Rf8+ {[%clk 0:00:13.2]} 130. Kg4 {[%clk 0:00:09.3]} 0-1